2CCN - Level 2 Cost Centre Name,,9CCN - Level 9 Cost Centre Name,9CCC - Level 9 Cost Centre Code,9AN - Level 9 Account Name,9AC - Level 9 Account Code,Date posted,Date of transaction,Merchant Name,MerchantCity,Originating Account Name,Originating Account Number,MCC/SIC Code,MCC Description,Original Amount,Currency,Conversion Rate,Billed Amount,DebitCredit,ReferenceNbr,Statement Cycle,AccountName
Gloucester City Council,23UE,TOURISM MARKETING,LT100,OPERATIONAL EQUIPMENT <5000,5012,2015-11-04,2015-11-03,PAYPAL *FITTINGS4SH,35314369001,REDACTED,471565******4015,8931,ACCOUNTING  AUDITING AND BOOKKEEPING SERVICES,26.95,Pound Sterling (826),1,26.95,Debit,74998765307543722187883,2015-12-02,GLOUCESTER CC
Gloucester City Council,23UE,TOURISM MARKETING,LT100,VOCATIONAL TRAINING,2970,2015-11-06,2015-11-05,NOCHEX-BRITISH SIGN,1133443996,REDACTED,471565******4015,8299,SCHOOLS AND EDUCATIONAL SERVICES NOT ELSEWHERE CLASSIFIED,19.99,Pound Sterling (826),1,19.99,Debit,74771275309544986626450,2015-12-02,GLOUCESTER CC
Gloucester City Council,23UE,TOURISM MARKETING,LT100,OPERATIONAL EQUIPMENT <5000,5012,2015-11-23,2015-11-20,ARGOS LTD,GLOUCESTER,REDACTED,471565******4015,5310,DISCOUNT STORES,39.98,Pound Sterling (826),1,39.98,Debit,74579155325008974822602,2015-12-02,GLOUCESTER CC
Gloucester City Council,23UE,DOCKS COMPLEX - CATERING SERVS,RB110,CATERING PROVISIONS -FOOD,5110,2015-11-03,2015-11-02,SAINSBURYS SUPERMA,GLOUCESTER QU,REDACTED,471565******8223,5411,GROCERY STORES  SUPERMARKETS,34.25,Pound Sterling (826),1,34.25,Debit,74579155307009175513984,2015-12-02,GLOUCESTER CC
Gloucester City Council,23UE,DOCKS COMPLEX - SERVICES,RB100,OPERATIONAL EQUIPMENT <5000,5012,2015-11-04,2015-11-03,B & Q,GLOUCESTER GL,REDACTED,471565******8223,5211,LUMBER AND BUILDING MATERIALS STORES,7,Pound Sterling (826),1,7,Debit,74579155308004074574996,2015-12-02,GLOUCESTER CC
Gloucester City Council,23UE,ENVIRONMENTAL PLANNING,LM340,EXHIBITS AND COLLECTIONS,5038,2015-11-05,2015-11-04,THE RANGE,GLOUCESTER,REDACTED,471565******8223,5311,DEPARTMENT STORES,54.34,Pound Sterling (826),1,54.34,Debit,74579155309002174228637,2015-12-02,GLOUCESTER CC
Gloucester City Council,23UE,DOCKS COMPLEX - CATERING SERVS,RB110,CATERING PROVISIONS -FOOD,5110,2015-11-11,2015-11-10,SAINSBURYS SUPERMA,GLOUCESTER QU,REDACTED,471565******8223,5411,GROCERY STORES  SUPERMARKETS,17.3,Pound Sterling (826),1,17.3,Debit,74579155315009676803785,2015-12-02,GLOUCESTER CC
Gloucester City Council,23UE,ENVIRONMENTAL PLANNING,LM340,EXHIBITS AND COLLECTIONS,5038,2015-11-17,2015-11-16,THE RANGE,GLOUCESTER,REDACTED,471565******8223,5311,DEPARTMENT STORES,29.26,Pound Sterling (826),1,29.26,Debit,74579155321008578837026,2015-12-02,GLOUCESTER CC
Gloucester City Council,23UE,DOCKS COMPLEX - CATERING SERVS,RB110,CATERING PROVISIONS -FOOD,5110,2015-11-23,2015-11-20,SAINSBURYS SUPERMA,GLOUCESTER QU,REDACTED,471565******8223,5411,GROCERY STORES  SUPERMARKETS,10.55,Pound Sterling (826),1,10.55,Debit,74579155325005677558244,2015-12-02,GLOUCESTER CC
Gloucester City Council,23UE,DIRECTOR RESOURCES,MR102,FEES FOR SERVICES RECEIVED,5350,2015-11-16,2015-11-12,THE NEW TOPO GIGIO,PETERBOROUGH,REDACTED,471565******1326,5812,EATING PLACES  RESTAURANTS,166.65,Pound Sterling (826),1,166.65,Debit,74579155317003065694812,2015-12-02,GLOUCESTER CC
Gloucester City Council,23UE,CITY CENTRE CCTV SYSTEM,PY275,CONTRACT PAYMENTS,0020,2015-11-04,2015-11-03,PAYPAL *GLOBALMSCSE,35314369001,REDACTED,471565******8476,8999,PROFESSIONAL SERVICES NOT ELSEWHERE CLASSIFIED,175.56,Pound Sterling (826),1,175.56,Debit,74998765307543712142369,2015-12-02,GLOUCESTER CC
Gloucester City Council,23UE,HEALTH ADMINISTRATION,HA200,VOCATIONAL TRAINING,2970,2015-11-18,2015-11-16,CIEH LIMITED,LONDON,REDACTED,471565******8476,8699,MEMBERSHIP ORGANIZATIONS NOT ELSEWHERE CLASSIFIED,99,Pound Sterling (826),1,99,Debit,74830505320039320671894,2015-12-02,GLOUCESTER CC
Gloucester City Council,23UE,HOUSING STRATEGY & ENABLING,CH110,PUBLIC TRANSPORTATION,4061,2015-11-10,2015-11-09,TRAINLINE,03332 022 222,REDACTED,471565******3663,4112,PASSENGER RAILWAYS,69.05,Pound Sterling (826),1,69.05,Debit,74998865313544792374781,2015-12-02,GLOUCESTER CC
Gloucester City Council,23UE,FOLK MUSEUM,LM210,GENERAL REPAIR/MAINT BUILDINGS,3000,2015-11-05,2015-11-04,B & Q,GLOUCESTER GL,REDACTED,471565******9991,5211,LUMBER AND BUILDING MATERIALS STORES,27,Pound Sterling (826),1,27,Debit,74579155309002674806619,2015-12-02,GLOUCESTER CC
Gloucester City Council,23UE,CITY MUSEUM AND ART GALLERY,LM200,PUBLIC TRANSPORTATION,4061,2015-11-09,2015-11-06,TRAINLINE,03332 022 222,REDACTED,471565******9991,4112,PASSENGER RAILWAYS,77.11,Pound Sterling (826),1,77.11,Debit,74998865310544736232452,2015-12-02,GLOUCESTER CC
Gloucester City Council,23UE,FOLK MUSEUM,LM210,CATERING PROVISIONS -FOOD,5110,2015-11-16,2015-11-13,BOOKER LIMITED GLOUCESTER,GLOUCESTER,REDACTED,471565******9991,5811,CATERERS,8.49,Pound Sterling (826),1,8.49,Debit,74463665317923172277119,2015-12-02,GLOUCESTER CC
Gloucester City Council,23UE,FOLK MUSEUM,LM210,EVENTS,5952,2015-11-16,2015-11-13,ASDA SUPERSTORE,GLOUCESTER,REDACTED,471565******9991,5411,GROCERY STORES  SUPERMARKETS,44.8,Pound Sterling (826),1,44.8,Debit,74698175318060304695979,2015-12-02,GLOUCESTER CC
Gloucester City Council,23UE,CITY MUSEUM AND ART GALLERY,LM200,EVENTS,5952,2015-11-26,2015-11-25,AMZ*Party Delights L,amzn.com/pmts,REDACTED,471565******9991,4816,COMPUTER NETWORK/INFORMATION SERVICES,16.85,Pound Sterling (826),1,16.85,Debit,74313225329000410834463,2015-12-02,GLOUCESTER CC
Gloucester City Council,23UE,GUILDHALL BAR AND CAF�,LA210,CATERING PROVISIONS -FOOD,5110,2015-11-09,2015-11-06,ASDA SUPERSTORE,GLOUCESTER,REDACTED,471565******2470,5411,GROCERY STORES  SUPERMARKETS,33.83,Pound Sterling (826),1,33.83,Debit,74698175311010273267695,2015-12-02,GLOUCESTER CC
Gloucester City Council,23UE,GUILDHALL BAR AND CAF�,LA210,CATERING PROVISIONS -FOOD,5110,2015-11-09,2015-11-08,ASDA SUPERSTORE,GLOUCESTER,REDACTED,471565******2470,5411,GROCERY STORES  SUPERMARKETS,6,Pound Sterling (826),1,6,Debit,74698175313010897977776,2015-12-02,GLOUCESTER CC
Gloucester City Council,23UE,GUILDHALL BAR AND CAF�,LA210,CATERING PROVISIONS -FOOD,5110,2015-11-11,2015-11-10,ICELAND,GLOUCESTER,REDACTED,471565******2470,5411,GROCERY STORES  SUPERMARKETS,9,Pound Sterling (826),1,9,Debit,74698165315030244487617,2015-12-02,GLOUCESTER CC
Gloucester City Council,23UE,GUILDHALL EVENTS,LA200,FEES FOR SERVICES RECEIVED,5350,2015-11-13,2015-11-12,MIPERMIT PARKING-DOM,INTERNET,REDACTED,471565******2470,7523,AUTOMOBILE PARKING LOTS AND GARAGES,10,Pound Sterling (826),1,10,Debit,74745105317050069881568,2015-12-02,GLOUCESTER CC
Gloucester City Council,23UE,GUILDHALL BAR AND CAF�,LA210,CATERING PROVISIONS -FOOD,5110,2015-11-13,2015-11-12,ASDA SUPERSTORE,GLOUCESTER,REDACTED,471565******2470,5411,GROCERY STORES  SUPERMARKETS,7.47,Pound Sterling (826),1,7.47,Debit,74698175317050245468660,2015-12-02,GLOUCESTER CC
Gloucester City Council,23UE,GUILDHALL BAR AND CAF�,LA210,CATERING PROVISIONS -FOOD,5110,2015-11-17,2015-11-16,ALDI,GLOUCESTER,REDACTED,471565******2470,5411,GROCERY STORES  SUPERMARKETS,5.69,Pound Sterling (826),1,5.69,Debit,74019475321495000748428,2015-12-02,GLOUCESTER CC
Gloucester City Council,23UE,GUILDHALL BAR AND CAF�,LA210,CATERING PROVISIONS -FOOD,5110,2015-11-19,2015-11-18,ASDA SUPERSTORE,GLOUCESTER,REDACTED,471565******2470,5411,GROCERY STORES  SUPERMARKETS,35.45,Pound Sterling (826),1,35.45,Debit,74698175323090160816727,2015-12-02,GLOUCESTER CC
Gloucester City Council,23UE,GUILDHALL BAR AND CAF�,LA210,CATERING PROVISIONS -FOOD,5110,2015-11-23,2015-11-21,ASDA SUPERSTORE,GLOUCESTER,REDACTED,471565******2470,5411,GROCERY STORES  SUPERMARKETS,6,Pound Sterling (826),1,6,Debit,74698175326010664866330,2015-12-02,GLOUCESTER CC
Gloucester City Council,23UE,GUILDHALL BAR AND CAF�,LA210,CATERING PROVISIONS -FOOD,5110,2015-11-24,2015-11-23,ICELAND,GLOUCESTER,REDACTED,471565******2470,5411,GROCERY STORES  SUPERMARKETS,6.9,Pound Sterling (826),1,6.9,Debit,74698165328020110242977,2015-12-02,GLOUCESTER CC
Gloucester City Council,23UE,GUILDHALL BAR AND CAF�,LA210,CATERING PROVISIONS -FOOD,5110,2015-11-24,2015-11-23,ASDA SUPERSTORE,GLOUCESTER,REDACTED,471565******2470,5411,GROCERY STORES  SUPERMARKETS,35.84,Pound Sterling (826),1,35.84,Debit,74698175328020189266534,2015-12-02,GLOUCESTER CC
Gloucester City Council,23UE,GUILDHALL BAR AND CAF�,LA210,CATERING PROVISIONS -FOOD,5110,2015-11-24,2015-11-23,HOLLAND & BARRETT,GLOUCESTER,REDACTED,471565******2470,5999,MISCELLANEOUS AND RETAIL STORES,5.67,Pound Sterling (826),1,5.67,Debit,74579155328005574882181,2015-12-02,GLOUCESTER CC
Gloucester City Council,23UE,GUILDHALL BAR AND CAF�,LA210,CATERING PROVISIONS -FOOD,5110,2015-11-25,2015-11-24,BOOKER LIMITED GLOUCESTER,GLOUCESTER,REDACTED,471565******2470,5811,CATERERS,68.84,Pound Sterling (826),1,68.84,Debit,74463665328913287437234,2015-12-02,GLOUCESTER CC
Gloucester City Council,23UE,GUILDHALL BAR AND CAF�,LA210,CATERING PROVISIONS -FOOD,5110,2015-11-25,2015-11-24,ICELAND,GLOUCESTER,REDACTED,471565******2470,5411,GROCERY STORES  SUPERMARKETS,7.5,Pound Sterling (826),1,7.5,Debit,74698165329030104483536,2015-12-02,GLOUCESTER CC
Gloucester City Council,23UE,GUILDHALL BAR AND CAF�,LA210,HIRE OF EQUIPMENT,5020,2015-11-26,2015-11-25,THE RANGE,GLOUCESTER,REDACTED,471565******2470,5311,DEPARTMENT STORES,6.97,Pound Sterling (826),1,6.97,Debit,74579155330009574122248,2015-12-02,GLOUCESTER CC
Gloucester City Council,23UE,GUILDHALL BAR AND CAF�,LA210,CATERING PROVISIONS -FOOD,5110,2015-11-26,2015-11-25,ASDA SUPERSTORE,GLOUCESTER,REDACTED,471565******2470,5411,GROCERY STORES  SUPERMARKETS,34.52,Pound Sterling (826),1,34.52,Debit,74698175330040260069058,2015-12-02,GLOUCESTER CC
Gloucester City Council,23UE,GUILDHALL BAR AND CAF�,LA210,HIRE OF EQUIPMENT,5020,2015-11-27,2015-11-26,B&M RETAIL LTD,HS GLOUCESTER,REDACTED,471565******2470,5310,DISCOUNT STORES,2.49,Pound Sterling (826),1,2.49,Debit,74579155331005576092081,2015-12-02,GLOUCESTER CC
Gloucester City Council,23UE,GUILDHALL BAR AND CAF�,LA210,CATERING PROVISIONS -FOOD,5110,2015-11-30,2015-11-27,ICELAND,GLOUCESTER,REDACTED,471565******2470,5411,GROCERY STORES  SUPERMARKETS,11,Pound Sterling (826),1,11,Debit,74698165332060349808002,2015-12-02,GLOUCESTER CC
Gloucester City Council,23UE,POLLUTION CONTROL,HE300,PUBLIC TRANSPORTATION,4061,2015-11-10,2015-11-09,TRAINLINE,RAIL TICKETS,REDACTED,471565******4841,4112,PASSENGER RAILWAYS,72.22,Pound Sterling (826),1,72.22,Debit,74998865313544792916714,2015-12-02,GLOUCESTER CC
Gloucester City Council,23UE,ENVIRONMENTAL PLANNING,LM340,PUBLIC TRANSPORTATION,4061,2015-11-11,2015-11-10,TRAINLINE,RAIL TICKETS,REDACTED,471565******4841,4112,PASSENGER RAILWAYS,120.67,Pound Sterling (826),1,120.67,Debit,74998865314544814511682,2015-12-02,GLOUCESTER CC
Gloucester City Council,23UE,MEMBERS SUPPORT,RC300,PUBLIC TRANSPORTATION,4061,2015-11-11,2015-11-10,TRAINLINE,RAIL TICKETS,REDACTED,471565******4841,4112,PASSENGER RAILWAYS,76.4,Pound Sterling (826),1,76.4,Debit,74998865314544814512649,2015-12-02,GLOUCESTER CC
Gloucester City Council,23UE,ENVIRONMENTAL PLANNING,LM340,PUBLIC TRANSPORTATION,4061,2015-11-12,2015-11-11,TRAINLINE,RAIL TICKETS,REDACTED,471565******4841,4112,PASSENGER RAILWAYS,5.56,Pound Sterling (826),1,5.56,Debit,74998865315544835743933,2015-12-02,GLOUCESTER CC
Gloucester City Council,23UE,CONTACT CENTRE,RB300,PUBLIC TRANSPORTATION,4061,2015-11-17,2015-11-16,TRAINLINE,RAIL TICKETS,REDACTED,471565******4841,4112,PASSENGER RAILWAYS,17.59,Pound Sterling (826),1,17.59,Debit,74998865320545934957962,2015-12-02,GLOUCESTER CC
Gloucester City Council,23UE,DEVELOPMENT MANAGEMENT,PT200,PUBLIC TRANSPORTATION,4061,2015-11-18,2015-11-17,TRAINLINE,RAIL TICKETS,REDACTED,471565******4841,4112,PASSENGER RAILWAYS,171.46,Pound Sterling (826),1,171.46,Debit,74998865321545956581483,2015-12-02,GLOUCESTER CC
Gloucester City Council,23UE,CONTACT CENTRE,RB300,STATIONERY,5302,2015-11-19,2015-11-18,Amazon UK Marketplace,800-279-6620,REDACTED,471565******4841,5999,MISCELLANEOUS AND RETAIL STORES,53.9,Pound Sterling (826),1,53.9,Debit,74313225322000651711351,2015-12-02,GLOUCESTER CC
Gloucester City Council,23UE,DIRECTOR RESOURCES,MR102,PUBLIC TRANSPORTATION,4061,2015-11-19,2015-11-18,TRAINLINE,RAIL TICKETS,REDACTED,471565******4841,4112,PASSENGER RAILWAYS,13.51,Pound Sterling (826),1,13.51,Debit,74998865322545974652158,2015-12-02,GLOUCESTER CC
Gloucester City Council,23UE,CIVIC ADMIN AND HOSPITALITY,RC210,VEHICLE LICENCES,4015,2015-11-23,2015-11-20,WWW.DVLA.GOV.UK,VEHICLE LICEN,REDACTED,471565******4841,9399,GOVERNMENT SERVICES NOT ELSEWHERE CLASSIFIED,115.25,Pound Sterling (826),1,115.25,Debit,74579155325004977070729,2015-12-02,GLOUCESTER CC
Gloucester City Council,23UE,POLLUTION CONTROL,HE300,PUBLIC TRANSPORTATION,4061,2015-11-24,2015-11-23,TRAINLINE,RAIL TICKETS,REDACTED,471565******4841,4112,PASSENGER RAILWAYS,196.55,Pound Sterling (826),1,196.55,Debit,74998865327546076674483,2015-12-02,GLOUCESTER CC
Gloucester City Council,23UE,MEMBERS SUPPORT,RC300,PUBLIC TRANSPORTATION,4061,2015-11-24,2015-11-23,TRAINLINE,RAIL TICKETS,REDACTED,471565******4841,4112,PASSENGER RAILWAYS,25.86,Pound Sterling (826),1,25.86,Debit,74998865327546076673899,2015-12-02,GLOUCESTER CC
Gloucester City Council,23UE,MEMBERS SUPPORT,RC300,PUBLIC TRANSPORTATION,4061,2015-11-24,2015-11-23,TRAINLINE,RAIL TICKETS,REDACTED,471565******4841,4112,PASSENGER RAILWAYS,72.22,Pound Sterling (826),1,72.22,Debit,74998865327546076682148,2015-12-02,GLOUCESTER CC
Gloucester City Council,23UE,MEMBERS SUPPORT,RC300,PUBLIC TRANSPORTATION,4061,2015-11-26,2015-11-25,TRAINLINE,RAIL TICKETS,REDACTED,471565******4841,4112,PASSENGER RAILWAYS,125.87,Pound Sterling (826),1,125.87,Debit,74998865329546120901997,2015-12-02,GLOUCESTER CC
Gloucester City Council,23UE,TOURISM MARKETING,LT100,PUBLIC TRANSPORTATION,4061,2015-11-26,2015-11-25,TRAINLINE,RAIL TICKETS,REDACTED,471565******4841,4112,PASSENGER RAILWAYS,40.19,Pound Sterling (826),1,40.19,Debit,74998865329546120893335,2015-12-02,GLOUCESTER CC
Gloucester City Council,23UE,CONTACT CENTRE,RB300,STATIONERY,5302,2015-11-30,2015-11-27,Amazon UK Retail,AMAZON.CO.UK,REDACTED,471565******4841,5969,ALL OTHER DIRECT MARKETERS,76.71,Pound Sterling (826),1,76.71,Debit,74313225331000368731295,2015-12-02,GLOUCESTER CC
Gloucester City Council,23UE,TOURISM MARKETING,LT100,PUBLIC TRANSPORTATION,4061,2015-12-01,2015-11-30,TRAINLINE,RAIL TICKETS,REDACTED,471565******4841,4112,PASSENGER RAILWAYS,72.22,Pound Sterling (826),1,72.22,Debit,74998865334547251072205,2015-12-02,GLOUCESTER CC
Gloucester City Council,23UE,POLLUTION CONTROL,HE300,PUBLIC TRANSPORTATION,4061,2015-12-01,2015-11-30,TRAINLINE,RAIL TICKETS,REDACTED,471565******4841,4112,PASSENGER RAILWAYS,-27.9,Pound Sterling (826),1,-27.9,Credit,74998865334547251077048,2015-12-02,GLOUCESTER CC
Gloucester City Council,23UE,COUNCIL STREETCARE TEAM,HI101,VOCATIONAL TRAINING,2970,2015-12-02,2015-12-01,TRAINLINE,RAIL TICKETS,REDACTED,471565******4841,4112,PASSENGER RAILWAYS,25.86,Pound Sterling (826),1,25.86,Debit,74998865335547281283961,2015-12-02,GLOUCESTER CC
Gloucester City Council,23UE,POLLUTION CONTROL,HE300,PUBLIC TRANSPORTATION,4061,2015-11-03,2015-11-02,TRAINLINE,RAIL TICKETS,REDACTED,471565******8839,4112,PASSENGER RAILWAYS,72.22,Pound Sterling (826),1,72.22,Debit,74998865306543654140412,2015-12-02,GLOUCESTER CC
Gloucester City Council,23UE,GUILDHALL EVENTS,LA200,ADVERTISING AND PUBLICITY,5702,2015-11-03,2015-11-02,WWW.INSTANTPRINT.C,01709 382202,REDACTED,471565******7657,7338,QUICK-COPY AND REPRODUCTION SERVICES,25.99,Pound Sterling (826),1,25.99,Debit,74579155307000577973926,2015-12-02,GLOUCESTER CC
Gloucester City Council,23UE,GUILDHALL EVENTS,LA200,ADVERTISING AND PUBLICITY,5702,2015-11-03,2015-11-02,WWW.INSTANTPRINT.C,01709 382202,REDACTED,471565******7657,7338,QUICK-COPY AND REPRODUCTION SERVICES,25.99,Pound Sterling (826),1,25.99,Debit,74579155307000677973933,2015-12-02,GLOUCESTER CC
Gloucester City Council,23UE,GUILDHALL EVENTS,LA200,FEES FOR SERVICES RECEIVED,5350,2015-11-05,2015-11-04,MIPERMIT PARKING-DOM,INTERNET,REDACTED,471565******7657,7523,AUTOMOBILE PARKING LOTS AND GARAGES,10,Pound Sterling (826),1,10,Debit,74745105309090077258490,2015-12-02,GLOUCESTER CC
Gloucester City Council,23UE,GUILDHALL EVENTS,LA200,ADVERTISING AND PUBLICITY,5702,2015-11-05,2015-11-04,WWW.INSTANTPRINT.C,01709 382202,REDACTED,471565******7657,7338,QUICK-COPY AND REPRODUCTION SERVICES,20.99,Pound Sterling (826),1,20.99,Debit,74579155309000375001456,2015-12-02,GLOUCESTER CC
Gloucester City Council,23UE,GUILDHALL EVENTS,LA200,FEES FOR SERVICES RECEIVED,5350,2015-11-11,2015-11-10,MIPERMIT PARKING-DOM,INTERNET,REDACTED,471565******7657,7523,AUTOMOBILE PARKING LOTS AND GARAGES,10,Pound Sterling (826),1,10,Debit,74745105315030063403488,2015-12-02,GLOUCESTER CC
Gloucester City Council,23UE,GLOUCESTER GUILDHALL,LA100,MAINTENANCE OF EQUIPMENT,5030,2015-11-19,2015-11-17,WWW.UK.RS-ONLINE.C,08457 201201,REDACTED,471565******6962,5065,ELECTRICAL PARTS AND EQUIPMENT,49.13,Pound Sterling (826),1,49.13,Debit,74579155322000479479494,2015-12-02,GLOUCESTER CC
Gloucester City Council,23UE,GUILDHALL EVENTS,LA200,FEES FOR SERVICES RECEIVED,5350,2015-11-19,2015-11-18,MIPERMIT PARKING-DOM,INTERNET,REDACTED,471565******6962,7523,AUTOMOBILE PARKING LOTS AND GARAGES,30,Pound Sterling (826),1,30,Debit,74745105323090063254257,2015-12-02,GLOUCESTER CC
Gloucester City Council,23UE,BLACKFRIARS,LA609,FEES FOR SERVICES RECEIVED,5350,2015-11-19,2015-11-18,ASDA 4387,LEEDS,REDACTED,471565******6962,5411,GROCERY STORES  SUPERMARKETS,242.95,Pound Sterling (826),1,242.95,Debit,74697055323090197063314,2015-12-02,GLOUCESTER CC
Gloucester City Council,23UE,GUILDHALL EVENTS,LA200,ADVERTISING AND PUBLICITY,5702,2015-11-19,2015-11-18,WWW.INSTANTPRINT.C,01709 382202,REDACTED,471565******6962,7338,QUICK-COPY AND REPRODUCTION SERVICES,25.99,Pound Sterling (826),1,25.99,Debit,74579155323008375293751,2015-12-02,GLOUCESTER CC
Gloucester City Council,23UE,GUILDHALL EVENTS,LA200,ADVERTISING AND PUBLICITY,5702,2015-11-19,2015-11-18,WWW.INSTANTPRINT.C,01709 382202,REDACTED,471565******6962,7338,QUICK-COPY AND REPRODUCTION SERVICES,25.99,Pound Sterling (826),1,25.99,Debit,74579155323008475293768,2015-12-02,GLOUCESTER CC
Gloucester City Council,23UE,GLOUCESTER GUILDHALL,LA100,MAINTENANCE OF EQUIPMENT,5030,2015-11-19,2015-11-18,WILKO RETAIL LIMIT,GLOUCESTER 14,REDACTED,471565******6962,5722,HOUSEHOLD APPLIANCE STORES,111.51,Pound Sterling (826),1,111.51,Debit,74579155323005271156876,2015-12-02,GLOUCESTER CC
Gloucester City Council,23UE,GLOUCESTER GUILDHALL,LA100,MAINTENANCE OF EQUIPMENT,5030,2015-11-19,2015-11-18,WILKO RETAIL LIMIT,GLOUCESTER 14,REDACTED,471565******6962,5722,HOUSEHOLD APPLIANCE STORES,24.99,Pound Sterling (826),1,24.99,Debit,74579155323009171157356,2015-12-02,GLOUCESTER CC
Gloucester City Council,23UE,BLACKFRIARS,LA609,FEES FOR SERVICES RECEIVED,5350,2015-11-19,2015-11-18,LIGHTS4FUN.CO.UK,HARROGATE,REDACTED,471565******6962,5065,ELECTRICAL PARTS AND EQUIPMENT,144.5,Pound Sterling (826),1,144.5,Debit,74056575323003000104326,2015-12-02,GLOUCESTER CC
Gloucester City Council,23UE,GUILDHALL EVENTS,LA200,FEES FOR SERVICES RECEIVED,5350,2015-11-20,2015-11-19,MIPERMIT PARKING-DOM,INTERNET,REDACTED,471565******6962,7523,AUTOMOBILE PARKING LOTS AND GARAGES,10,Pound Sterling (826),1,10,Debit,74745105324000078022374,2015-12-02,GLOUCESTER CC
Gloucester City Council,23UE,GUILDHALL CINEMA,LA202,FEES FOR SERVICES RECEIVED,5350,2015-11-20,2015-11-19,HMV RETAIL LTD,GLOUCESTER,REDACTED,471565******6962,5735,RECORD SHOPS,9.99,Pound Sterling (826),1,9.99,Debit,74698085324000061216448,2015-12-02,GLOUCESTER CC
Gloucester City Council,23UE,GUILDHALL EVENTS,LA200,FEES FOR SERVICES RECEIVED,5350,2015-11-24,2015-11-23,MIPERMIT PARKING-DOM,INTERNET,REDACTED,471565******6962,7523,AUTOMOBILE PARKING LOTS AND GARAGES,10,Pound Sterling (826),1,10,Debit,74745105328020074660742,2015-12-02,GLOUCESTER CC
Gloucester City Council,23UE,GLOUCESTER GUILDHALL,LA100,GENERAL REPAIR/MAINT BUILDINGS,3000,2015-11-25,2015-11-24,B & Q,GLOUCESTER GL,REDACTED,471565******6962,5211,LUMBER AND BUILDING MATERIALS STORES,41.39,Pound Sterling (826),1,41.39,Debit,74579155329002175946225,2015-12-02,GLOUCESTER CC
Gloucester City Council,23UE,GUILDHALL EVENTS,LA200,FEES FOR SERVICES RECEIVED,5350,2015-11-26,2015-11-25,MIPERMIT PARKING-DOM,INTERNET,REDACTED,471565******6962,7523,AUTOMOBILE PARKING LOTS AND GARAGES,10,Pound Sterling (826),1,10,Debit,74745105330040073542606,2015-12-02,GLOUCESTER CC
Gloucester City Council,23UE,GUILDHALL LETTINGS,LA400,OPERATIONAL EQUIPMENT <5000,5012,2015-11-26,2015-11-25,WWW.AANDCAUDIO.CO.UK,INTERNET,REDACTED,471565******6962,5735,RECORD SHOPS,116.81,Pound Sterling (826),1,116.81,Debit,74745095330040189787569,2015-12-02,GLOUCESTER CC
Gloucester City Council,23UE,GLOUCESTER GUILDHALL,LA100,MAINTENANCE OF EQUIPMENT,5030,2015-11-26,2015-11-25,WILKO RETAIL LIMIT,GLOUCESTER 14,REDACTED,471565******6962,5722,HOUSEHOLD APPLIANCE STORES,25,Pound Sterling (826),1,25,Debit,74579155330002070744011,2015-12-02,GLOUCESTER CC
Gloucester City Council,23UE,GUILDHALL EVENTS,LA200,FEES FOR SERVICES RECEIVED,5350,2015-11-27,2015-11-26,MIPERMIT PARKING-DOM,INTERNET,REDACTED,471565******6962,7523,AUTOMOBILE PARKING LOTS AND GARAGES,10,Pound Sterling (826),1,10,Debit,74745105331050078007397,2015-12-02,GLOUCESTER CC
Gloucester City Council,23UE,GUILDHALL EVENTS,LA200,ADVERTISING AND PUBLICITY,5702,2015-12-01,2015-11-30,WWW.INSTANTPRINT.C,01709 382202,REDACTED,471565******6962,7338,QUICK-COPY AND REPRODUCTION SERVICES,25.99,Pound Sterling (826),1,25.99,Debit,74579155335004778618252,2015-12-02,GLOUCESTER CC
Gloucester City Council,23UE,GUILDHALL EVENTS,LA200,ADVERTISING AND PUBLICITY,5702,2015-12-01,2015-11-30,WWW.INSTANTPRINT.C,01709 382202,REDACTED,471565******6962,7338,QUICK-COPY AND REPRODUCTION SERVICES,31.99,Pound Sterling (826),1,31.99,Debit,74579155335004878618269,2015-12-02,GLOUCESTER CC
Gloucester City Council,23UE,BLACKFRIARS,LA609,FEES FOR SERVICES RECEIVED,5350,2015-12-01,2015-11-30,LIGHTS4FUN.CO.UK,HARROGATE,REDACTED,471565******6962,5065,ELECTRICAL PARTS AND EQUIPMENT,115.5,Pound Sterling (826),1,115.5,Debit,74056575335003000164995,2015-12-02,GLOUCESTER CC
Gloucester City Council,23UE,GUILDHALL EVENTS,LA200,ADVERTISING AND PUBLICITY,5702,2015-12-01,2015-11-30,FACEBOOK S8Z2E82E72,www.fb.me/ads,REDACTED,471565******6962,7311,ADVERTISING SERVICES,62.14,Pound Sterling (826),1,62.14,Debit,74987505334354197291238,2015-12-02,GLOUCESTER CC
Gloucester City Council,23UE,GUILDHALL EVENTS,LA200,ADVERTISING AND PUBLICITY,5702,2015-12-01,2015-11-30,WWW.INSTANTPRINT.C,01709 382202,REDACTED,471565******6962,7338,QUICK-COPY AND REPRODUCTION SERVICES,-25.99,Pound Sterling (826),1,-25.99,Credit,74579155335004978618276,2015-12-02,GLOUCESTER CC
Gloucester City Council,23UE,GUILDHALL EVENTS,LA200,FEES FOR SERVICES RECEIVED,5350,2015-12-02,2015-12-01,MIPERMIT PARKING-DOM,INTERNET,REDACTED,471565******6962,7523,AUTOMOBILE PARKING LOTS AND GARAGES,10,Pound Sterling (826),1,10,Debit,74745105336080079226055,2015-12-02,GLOUCESTER CC
Gloucester City Council,23UE,BUSINESS PLANNING & PERFORMANC,RL500,PUBLIC TRANSPORTATION,4061,2015-11-03,2015-11-02,GWR GLOUCESTER TO,GLOUCESTER,REDACTED,471565******3318,4112,PASSENGER RAILWAYS,37.7,Pound Sterling (826),1,37.7,Debit,74424715306161159633392,2015-12-02,GLOUCESTER CC
Gloucester City Council,23UE,BUSINESS TRANSFORMATION & TECH,RT700,OTHER MINOR SUPPLIES SERVICES,5590,2015-11-18,2015-09-29,CR IN RESPECT OF DISPUTED,TRANSACTION,REDACTED,471565******3318,8398,CHARITABLE AND SOCIAL SERVICE ORGANIZATIONS,-38,Pound Sterling (826),1,-38,Credit,74998765272538079324916,2015-12-02,GLOUCESTER CC
Gloucester City Council,23UE,CLIENT REVS & BENS CONTRACT,RT240,COURT FEES,5358,2015-11-09,2015-11-06,HMCOURTS-SERVICE.G,1452420100,REDACTED,471565******5409,9222,FINES,1995,Pound Sterling (826),1,1995,Debit,74579155311001978243202,2015-12-02,GLOUCESTER CC
Gloucester City Council,23UE,INHOUSE TRAINING,EH200,VOCATIONAL TRAINING,2970,2015-11-12,2015-11-11,WWW.CIPS.ORG,0845 8801188,REDACTED,471565******5409,8699,MEMBERSHIP ORGANIZATIONS NOT ELSEWHERE CLASSIFIED,167.79,Pound Sterling (826),1,167.79,Debit,74579155316000577808147,2015-12-02,GLOUCESTER CC
Gloucester City Council,23UE,FINANCIAL SERVICES,RT200,VOCATIONAL TRAINING,2970,2015-11-12,2015-11-11,WWW.AAT-ORG.UK,LONDON EC1R,REDACTED,471565******5409,8931,ACCOUNTING  AUDITING AND BOOKKEEPING SERVICES,88,Pound Sterling (826),1,88,Debit,74085325316529000006776,2015-12-02,GLOUCESTER CC
